bitfinex/quotes_ETHUSD_20251130
["timestamp","ask_amount","ask_price","bid_price","bid_amount"]
[1764486162565,4.93316996,3001.3,3001.2,0.001]
[1764486162960,3.97956996,3001.3,3001.2,0.001]
[1764486163262,3.97956996,3001.3,3001.2,0.2207]
[1764486163673,3.54388951,3001.3,3001.2,0.2207]
[1764486163863,3.54388951,3001.3,3001.2,0.4404]
[1764486164654,3.54388951,3001.3,3001.2,0.2207]
[1764486166255,3.97956996,3001.3,3001.2,0.2207]
[1764486177002,3.97956996,3001.3,3001.2,0.4404]
[1764486177506,3.87956996,3001.3,3001.2,0.2207]
[1764486178598,3.87956996,3001.3,3001.2,0.001]
[1764486178599,5.19687481,3001.3,3001.2,0.001]
[1764486179098,5.65217481,3001.3,3001.2,0.001]
[1764486180804,5.19687481,3001.3,3001.2,0.001]
[1764486180971,4.44346996,3001.3,3001.2,0.001]
[1764486183310,4.89876996,3001.3,3001.2,0.001]
[1764486184616,5.30427396,3001.3,3001.2,0.001]
[1764486184774,5.43781316,3001.3,3001.2,0.001]
[1764486185714,6.16340727,3001.3,3001.2,0.001]
[1764486185876,7.76144239,3001.3,3001.2,0.001]
[1764486187902,6.84224239,3001.3,3001.2,0.001]
[1764486188905,7.30614239,3001.3,3001.2,0.001]
[1764486189509,7.76144239,3001.3,3001.2,0.001]
[1764486192619,7.20614239,3001.3,3001.2,0.001]
[1764486192792,4.80852682,3001.3,3001.2,0.2207]
[1764486193186,5.24420727,3001.3,3001.2,0.2207]
[1764486196023,3.54388951,3001.3,3001.2,0.4404]
[1764486198399,0.212,3001.3,3001.2,0.4404]
[1764486199202,0.002,3001.3,3001.2,0.4404]
[1764486206037,0.002,3001.3,3001.2,0.2207]
[1764486210014,0.002,3001.3,3001.2,0.4404]
[1764486210210,0.002,3001.3,3001.2,0.80879827]
[1764486210415,0.002,3001.3,3001.2,1.02949827]
[1764486210651,0.002,3001.3,3001.2,4.3614988]
[1764486211937,0.002,3001.3,3001.2,4.1407988]
[1764486212746,0.002,3001.3,3001.2,4.3507988]
[1764486213951,0.002,3001.3,3001.2,4.3841188]
[1764486214854,0.002,3001.3,3001.2,4.3507988]
[1764486220762,0.002,3001.3,3001.2,4.3841188]
[1764486221664,0.002,3001.3,3001.2,4.1644188]
[1764486221865,0.002,3001.3,3001.2,4.3841188]
[1764486227768,0.002,3001.3,3001.2,4.71660128]
[1764486228837,0.002,3001.3,3001.2,5.44219539]
[1764486231868,0.002,3001.3,3001.2,6.70546353]
[1764486232200,0.002,3001.3,3001.2,5.81437939]
[1764486232343,0.002,3001.3,3001.2,5.84769939]
[1764486233667,0.002,3001.3,3001.2,5.81437939]
[1764486235346,0.002,3001.3,3001.2,6.70611149]
[1764486238386,0.002,3001.3,3001.2,5.81437939]
[1764486241963,0.002,3001.3,3001.2,5.84769939]
[1764486245253,0.002,3001.3,3001.2,5.81437939]
[1764486246879,0.002,3001.3,3001.2,5.06669291]
[1764486248079,0.002,3001.3,3001.2,4.63699291]
[1764486248257,0.002,3001.3,3001.2,4.84699291]
[1764486250390,0.002,3001.3,3001.2,5.7388373]
[1764486251083,0.002,3001.3,3001.2,6.2115573]
[1764486251256,0.002,3001.3,3001.2,6.54403978]
[1764486251457,0.002,3001.3,3001.2,6.51071978]
[1764486251657,0.002,3001.3,3001.2,6.54403978]
[1764486251852,0.002,3001.3,3001.2,5.31971291]
[1764486252054,0.002,3001.3,3001.2,6.21246962]
[1764486252486,0.002,3001.3,3001.2,5.31971291]
[1764486253287,0.002,3001.3,3001.2,5.65219539]
[1764486254283,0.002,3001.3,3001.2,5.31971291]
[1764486254488,0.002,3001.3,3001.2,6.84092076]
[1764486254688,0.002,3001.3,3001.2,6.80760076]
[1764486257406,0.002,3001.3,3001.2,5.61887539]
[1764486257578,0.002,3001.3,3001.2,5.65219539]
[1764486259926,0.002,3001.3,3001.2,7.84048661]
[1764486260225,0.002,3001.3,3001.2,7.80716661]
[1764486267027,0.002,3001.3,3001.2,6.02437939]
[1764486268151,0.002,3001.3,3001.2,6.05769939]
[1764486268914,0.002,3001.3,3001.2,6.02437939]
[1764486269751,0.002,3001.3,3001.2,5.80467939]
[1764486269957,0.002,3001.3,3001.2,7.3836109]
[1764486270448,0.002,3001.3,3001.2,7.5936109]
[1764486271636,0.002,3001.3,3001.2,7.1639109]
[1764486271841,0.002,3001.3,3001.2,7.3739109]
[1764486274743,0.002,3001.3,3001.2,10.61263332]
[1764486276741,0.4708,3001.3,3001.2,10.61263332]
[1764486276944,0.4857,3001.3,3001.2,10.61263332]
[1764486277148,0.002,3001.3,3001.2,10.61263332]
[1764486277316,0.4708,3001.3,3001.2,10.61263332]
[1764486281345,0.002,3001.3,3001.2,10.83233332]
[1764486282246,0.002,3001.3,3001.2,10.49985084]
[1764486282428,0.002,3001.3,3001.2,10.83233332]
[1764486283030,0.002,3001.3,3001.2,11.05203332]
[1764486284649,0.002,3001.3,3001.2,10.83233332]
[1764486284853,0.002,3001.3,3001.2,12.50182423]
[1764486285834,0.002,3001.5,3001.3,0.72559411]
[1764486286064,0.002,3001.5,3001.4,3.73957026]
[1764486286242,0.002,3001.5,3001.4,10.4367151]
[1764486286447,0.002,3001.5,3001.4,10.53683985]
[1764486288654,0.002,3001.5,3001.4,13.86861835]
[1764486288857,0.002,3002.2,3001.9,0.405504]
[1764486289070,0.002,3002.2,3001.9,6.95285439]
[1764486289224,0.002,3002.2,3001.9,6.91954216]
[1764486289422,0.002,3002.2,3001.9,7.0529651]
[1764486289627,0.002,3002.2,3001.9,7.2726651]
[1764486289840,0.002,3002.2,3001.9,6.08203877]
[1764486290457,0.002,3002.2,3001.9,7.86769193]
[1764486291128,0.002,3002.2,3001.9,11.19891548]
[1764486293760,0.002,3002.2,3002.0,1.46358059]
[1764486293959,0.002,3002.2,3002.0,1.93629171]
[1764486294130,0.002,3002.2,3002.0,3.9592636]
[1764486294336,0.002,3002.2,3002.0,7.42379112]
[1764486294536,0.002,3002.2,3002.0,7.39048]
[1764486297142,0.002,3002.2,3002.0,11.28048]
[1764486297356,0.002,3002.2,3002.0,11.06078]
[1764486299058,0.002,3002.2,3002.0,11.28048]
[1764486300060,0.002,3002.2,3002.0,11.06078]
[1764486301479,0.002,3002.2,3002.0,11.28048]
[1764486301764,0.002,3002.4,3002.2,0.405504]
[1764486301935,0.002,3002.4,3002.2,9.69574399]
[1764486302132,0.002,3002.4,3002.2,9.66243509]
[1764486302334,0.002,3002.4,3002.2,13.12673536]
[1764486302677,0.00066753,3002.4,3002.3,1.68328059]
[1764486302830,0.00066753,3002.4,3002.3,3.11394143]
[1764486303036,0.00066753,3002.4,3002.3,3.92919479]
[1764486303251,0.00066753,3002.4,3002.3,4.06260127]
[1764486304040,0.00066753,3002.4,3002.3,2.87524822]
[1764486304367,0.00066753,3002.4,3002.3,4.06177037]
[1764486304655,0.00066753,3002.4,3002.3,6.20602795]
[1764486305166,0.00066753,3002.4,3002.3,7.39249272]
[1764486305334,0.00066753,3002.4,3002.3,7.35918493]
[1764486306248,0.002,3002.5,3002.4,0.405504]
[1764486306447,0.002,3002.5,3002.4,10.68621708]
[1764486306960,0.002,3002.5,3002.4,10.81960621]
[1764486307266,0.002,3002.5,3002.4,6.92960621]
[1764486307435,0.002,3002.5,3002.4,11.35439444]
[1764486308470,0.002,3002.5,3002.4,14.68506323]
[1764486308638,0.0009,3002.7,3002.6,4.70230301]
[1764486308962,0.0009,3002.7,3002.6,7.24235074]
[1764486309157,0.0009,3002.7,3002.6,7.93485074]
[1764486309467,0.0009,3002.7,3002.6,7.04527049]
[1764486310163,0.0009,3002.7,3002.6,7.93483205]
[1764486310368,0.0009,3002.7,3002.6,10.37571743]
[1764486310868,0.0009,3002.7,3002.6,10.59541743]
[1764486311566,0.0009,3002.7,3002.6,10.37571743]
[1764486312391,0.4667,3002.7,3002.6,10.37571743]
[1764486314392,0.4667,3002.7,3002.6,11.56178324]
[1764486316218,0.0009,3002.7,3002.6,11.56178324]
[1764486316408,0.0009,3002.7,3002.6,10.37571743]
[1764486316775,0.0009,3002.7,3002.6,10.59541743]
[1764486317487,0.0009,3002.7,3002.6,10.37571743]
[1764486320194,0.4667,3002.7,3002.6,10.37571743]
[1764486320390,0.4667,3002.7,3002.6,11.82888811]
[1764486320578,0.961,3002.7,3002.6,10.37571743]
[1764486322195,0.0009,3002.7,3002.6,10.37571743]
[1764486322896,0.0009,3002.7,3002.6,10.59541743]
[1764486323497,0.0009,3002.7,3002.6,12.38107059]
[1764486323899,0.0009,3002.7,3002.6,16.27107059]
[1764486324600,0.4728,3002.7,3002.6,16.05137059]
[1764486324799,0.9377,3002.7,3002.6,16.05137059]
[1764486328386,0.9377,3002.7,3002.6,14.26571743]
[1764486331193,0.0009,3002.7,3002.6,14.26571743]
[1764486331909,0.481,3002.7,3002.6,14.26571743]
[1764486332104,0.0009,3002.7,3002.6,14.26571743]
[1764486332710,0.0009,3002.7,3002.6,10.37571743]
[1764486333613,0.0009,3002.7,3002.6,10.59541743]
[1764486334685,0.0009,3002.7,3002.6,10.59165611]
[1764486334986,0.0009,3002.7,3002.6,10.81135611]
[1764486336014,0.0009,3002.7,3002.6,10.59165611]
[1764486338313,0.663,3002.7,3002.6,10.37195611]
[1764486338490,1.1325,3002.7,3002.6,10.37195611]
[1764486339017,0.481,3002.7,3002.6,10.37195611]
[1764486339219,0.9505,3002.7,3002.6,10.37195611]
[1764486339793,0.0009,3002.7,3002.6,10.59165611]
[1764486342690,0.0009,3002.7,3002.6,10.37195611]
[1764486348632,0.0009,3002.7,3002.6,10.03947363]
[1764486348931,0.0009,3002.7,3002.6,10.37195611]
[1764486350442,0.481,3002.7,3002.6,13.92947363]
[1764486350647,0.481,3002.7,3002.6,14.26195611]
[1764486352473,0.945,3002.7,3002.6,4.02294694]
[1764486352622,0.945,3002.7,3002.6,5.45887367]
[1764486352814,0.945,3002.7,3002.6,5.32432799]
[1764486353247,0.945,3002.7,3002.6,6.51641012]
[1764486354263,0.945,3002.7,3002.6,8.00356443]
[1764486354559,0.0009,3002.7,3002.6,8.97229958]
[1764486355052,0.0009,3002.7,3002.6,7.18368184]
[1764486355673,0.0009,3002.7,3002.6,7.40338184]
[1764486356204,0.002,3003.1,3002.7,1.13109811]
[1764486356459,0.466,3003.1,3003.0,1.46358059]
[1764486356621,0.4712,3003.1,3003.0,1.67358059]
[1764486356818,0.9352,3003.1,3003.0,1.67358059]
[1764486357360,0.9352,3003.1,3003.0,2.60878059]
[1764486357534,0.9352,3003.1,3003.0,3.37183499]
[1764486360848,0.4712,3003.1,3003.0,8.52194069]
[1764486361152,0.4712,3003.1,3003.0,8.48864066]
[1764486361755,0.9352,3003.1,3003.0,8.48864066]
[1764486362248,0.9352,3003.1,3003.0,6.70183832]
[1764486365851,0.9352,3003.1,3003.0,6.36935584]
[1764486366056,0.9352,3003.1,3003.0,6.70183832]
[1764486369271,0.9352,3003.1,3003.0,5.96385184]
[1764486369644,0.9352,3003.1,3003.0,7.15448543]
[1764486370864,0.9352,3003.1,3003.0,6.39143103]
[1764486371061,0.9352,3003.1,3003.0,5.02409747]
[1764486371266,0.9352,3003.1,3003.0,5.23409747]
[1764486371577,0.9352,3003.1,3003.0,4.26520333]
[1764486371783,0.9352,3003.1,3003.0,4.99079744]
[1764486373077,0.9352,3003.1,3003.0,8.22575854]
[1764486374264,0.9352,3003.1,3003.0,4.99079744]
[1764486379787,0.9352,3003.1,3003.0,1.66079411]
[1764486380001,0.9352,3003.1,3003.0,0.72559411]
[1764486380293,0.9352,3003.1,3002.8,0.001]
[1764486380294,0.9352,3003.1,3002.8,1.1462]
[1764486380457,0.6178,3002.9,3002.8,0.001]
[1764486380982,1.0818,3002.9,3002.8,0.001]
[1764486381966,1.52318256,3002.9,3002.8,0.001]
[1764486382470,4.85329678,3002.9,3002.5,0.001]
[1764486382672,0.4698,3002.6,3002.5,0.001]
[1764486383192,0.9521,3002.6,3002.5,0.001]
[1764486400843,4.28254694,3002.6,3002.5,0.001]
[1764486403834,0.9521,3002.6,3002.5,0.001]
[1764486404033,4.71079508,3002.6,3002.5,0.001]
[1764486404531,1.38034814,3002.6,3002.5,0.001]
[1764486404738,4.71079508,3002.6,3002.5,0.001]
[1764486408957,1.38034814,3002.6,3002.5,0.001]
[1764486409157,0.002,3002.8,3002.5,3.67832551]
[1764486409360,0.002,3002.8,3002.5,0.3541265]
[1764486410261,0.489,3002.8,3002.5,0.3541265]
[1764486411250,0.489,3002.8,3002.6,3.33044694]
[1764486412036,0.489,3002.8,3002.5,6.7029045]
[1764486414437,0.489,3002.8,3002.5,7.72746121]
[1764486416061,0.489,3002.8,3002.5,4.39690872]
[1764486416269,0.4853,3002.6,3002.5,3.46498436]
[1764486417043,0.4853,3002.6,3002.5,0.1344265]
[1764486417243,0.9835,3002.6,3002.5,0.1344265]
[1764486417576,0.9835,3002.6,3002.5,3.46498436]
[1764486419841,0.9835,3002.6,3002.5,0.1344265]
[1764486420036,0.4853,3002.6,3002.5,0.1344265]
[1764486420240,0.4853,3002.6,3002.5,0.001]
[1764486420241,4.31394694,3002.6,3002.5,0.001]
[1764486420440,5.0785642,3002.6,3002.5,0.001]
[1764486420657,1.74811726,3002.6,3002.5,0.001]
[1764486420858,5.0785642,3002.6,3002.5,0.001]
[1764486421062,4.31394694,3002.6,3002.5,0.001]
[1764486421372,0.9835,3002.6,3002.5,0.001]
[1764486421969,4.31394694,3002.6,3002.5,0.001]
[1764486422538,4.52394694,3002.6,3002.5,0.001]
[1764486422979,5.30956781,3002.6,3002.5,0.001]
[1764486425464,5.30956781,3002.6,3002.5,0.001]
[1764486426601,1.76912087,3002.6,3002.5,0.001]
[1764486426809,0.9835,3002.6,3002.5,0.001]
[1764486427163,3.33228157,3002.8,3002.5,0.001]
[1764486427366,0.002,3002.8,3002.5,0.001]
[1764486427710,0.5002,3002.8,3002.5,0.001]
[1764486428598,0.002,3002.8,3002.5,0.001]
[1764486429006,0.5002,3002.8,3002.5,0.001]
[1764486430369,0.90238639,3002.8,3002.5,0.001]
[1764486430566,0.4853,3002.6,3002.5,0.001]
[1764486431810,0.9835,3002.6,3002.5,0.001]
[1764486433072,4.74962739,3002.6,3002.5,0.001]
[1764486433797,4.64962739,3002.6,3002.5,0.001]
[1764486433969,1.79168858,3002.6,3002.5,0.001]
[1764486434169,0.9835,3002.6,3002.5,0.001]
[1764486435003,0.4853,3002.6,3002.5,0.001]
[1764486435312,0.9835,3002.6,3002.5,0.001]
[1764486442423,0.002,3002.8,3002.5,0.001]
[1764486442626,0.4862,3002.6,3002.5,0.001]
[1764486443127,0.9751,3002.6,3002.5,0.001]
[1764486444158,0.4862,3002.6,3002.5,0.001]
[1764486445463,0.002,3002.8,3002.5,0.2207]
[1764486445753,0.4909,3002.8,3002.5,0.2207]
[1764486446259,0.4909,3002.8,3002.5,0.001]
[1764486446767,0.4862,3002.6,3002.5,0.001]
[1764486448660,0.9751,3002.6,3002.5,0.001]
[1764486449766,0.002,3002.8,3002.5,0.001]
[1764486449767,0.002,3002.8,3002.5,0.84365481]
[1764486449928,0.002,3002.8,3002.7,0.2197]
[1764486452787,0.002,3002.8,3002.7,3.55003603]
[1764486453590,0.002,3002.8,3002.7,4.55068812]
[1764486460495,0.4882,3002.8,3002.7,1.00065209]
[1764486460668,0.9771,3002.8,3002.7,1.00065209]
[1764486460995,0.4882,3002.8,3002.7,4.33098812]
[1764486461969,0.9771,3002.8,3002.7,1.00065209]
[1764486463525,0.4882,3002.8,3002.7,1.00065209]
[1764486463713,0.9771,3002.8,3002.6,0.211]
[1764486463918,0.4862,3002.7,3002.6,0.6992]
[1764486464317,0.4909,3002.8,3002.6,0.6992]
[1764486466225,0.002,3002.8,3002.6,0.6992]
[1764486466731,0.002,3002.8,3002.7,0.2197]
[1764486467630,0.002,3002.8,3002.6,0.6992]
[1764486469403,0.002,3002.8,3002.6,4.02962992]
[1764486469732,0.002,3002.8,3002.6,0.6992]
[1764486470110,0.002,3002.8,3002.6,4.02961561]
[1764486470314,0.002,3002.8,3002.7,0.2197]
[1764486472172,0.002,3002.8,3002.7,4.19476759]
[1764486472311,0.002,3002.8,3002.7,4.22807095]
[1764486472507,0.002,3002.8,3002.7,4.36148855]
[1764486472821,0.002,3002.8,3002.7,4.14178855]
[1764486474277,0.002,3002.8,3002.7,4.36148855]
[1764486476050,0.002,3002.8,3002.7,4.87977503]
[1764486476344,0.002,3002.8,3002.7,6.65209865]
[1764486476540,0.002,3002.8,3002.7,6.98458113]
[1764486476918,0.002,3002.8,3002.7,6.65209865]
[1764486477114,0.002,3002.8,3002.7,5.79176578]
[1764486477314,0.002,3002.8,3002.7,6.9840295]
[1764486478052,0.002,3002.8,3002.7,6.65154702]
[1764486479134,0.002,3002.8,3002.7,6.86154702]
[1764486479867,0.002,3002.8,3002.7,7.1940295]
[1764486482319,0.002,3002.8,3002.7,6.00176578]
[1764486483350,0.002,3002.8,3002.7,6.03506914]
[1764486483851,0.002,3002.8,3002.7,7.1940295]
[1764486484023,0.002,3002.8,3002.7,6.00176578]
[1764486484348,0.002,3002.8,3002.7,6.03506914]
[1764486484652,0.002,3002.8,3002.7,6.00176578]
[1764486486362,0.002,3002.8,3002.7,7.19137615]
[1764486486724,0.002,3002.8,3002.7,6.00176578]
[1764486492953,0.002,3002.8,3002.7,9.89176578]
[1764486497339,0.002,3002.8,3002.7,11.67856812]
[1764486497546,0.002,3002.8,3002.7,9.89176578]
[1764486499343,0.002,3002.8,3002.7,11.67856812]
[1764486502349,0.002,3002.8,3002.7,9.89176578]
[1764486506145,0.002,3002.8,3002.7,9.67206578]
[1764486507276,0.002,3002.8,3002.7,9.45236578]
[1764486507277,0.4942,3002.8,3002.7,9.45236578]
[1764486507457,0.002,3002.8,3002.7,9.45236578]
[1764486507866,0.002,3002.8,3002.7,9.67206578]
[1764486508775,0.002,3002.8,3002.7,9.46206578]
[1764486508966,0.002,3002.8,3002.7,9.45236578]
[1764486509961,0.4942,3002.8,3002.7,9.45236578]
[1764486510474,0.4942,3002.8,3002.7,8.41183022]
[1764486510674,0.9819,3002.8,3002.7,13.31718925]
[1764486510881,0.9819,3002.8,3002.7,9.42718925]
[1764486514364,0.9819,3002.8,3002.7,7.96865846]
[1764486515788,0.9819,3002.8,3002.7,7.63617598]
[1764486517762,0.9819,3002.8,3002.7,8.9121395]
[1764486518686,0.9819,3002.8,3002.7,8.91110436]
[1764486522288,0.9819,3002.8,3002.7,7.42514084]
[1764486522493,0.9819,3002.8,3002.7,7.63514084]
[1764486522891,0.9819,3002.8,3002.7,7.42514084]
[1764486523065,0.9819,3002.8,3002.7,7.63514084]
[1764486523263,0.9819,3002.8,3002.7,8.82868504]
[1764486525697,0.9819,3002.8,3002.7,7.63514084]
[1764486525894,0.002,3002.8,3002.7,7.63514084]
[1764486526673,0.002,3002.8,3002.7,7.96762332]
[1764486526997,0.4942,3002.8,3002.7,7.96762332]
[1764486527208,0.9819,3002.8,3002.7,7.96762332]
[1764486529101,0.002,3002.8,3002.7,7.96762332]
[1764486529801,0.9819,3002.8,3002.7,7.63514084]
[1764486532703,0.9819,3002.8,3002.7,4.39934774]
[1764486532916,0.9819,3002.8,3002.7,7.63514084]
[1764486540522,0.9819,3002.8,3002.7,4.18934774]
[1764486540722,0.9819,3002.8,3002.7,4.39934774]
[1764486540897,0.9819,3002.8,3002.7,4.18934774]
[1764486541102,0.9819,3002.8,3002.7,0.85901171]
[1764486542722,0.9819,3002.8,3002.7,4.18934774]
[1764486543294,0.9819,3002.8,3002.7,0.85901171]
[1764486545229,0.9819,3002.8,3002.7,4.18934774]
[1764486546314,0.9819,3002.8,3002.7,0.85901171]
[1764486546635,0.9819,3002.8,3002.6,0.001]
[1764486546843,0.9334,3002.7,3002.6,0.001]
[1764486547130,0.9334,3002.7,3002.6,3.2367931]
[1764486547131,1.37818481,3002.7,3002.6,3.2367931]
[1764486547302,0.9334,3002.7,3002.6,3.2367931]
[1764486547698,0.9334,3002.7,3002.6,6.56724004]
[1764486548312,0.9334,3002.7,3002.6,3.33144694]
[1764486549531,0.9334,3002.7,3002.6,0.001]
[1764486552839,0.85316706,3002.7,3002.6,0.001]
[1764486563251,0.37446706,3002.7,3002.6,0.001]
[1764486563634,0.83676706,3002.7,3002.6,0.001]
[1764486578585,0.83876706,3002.7,3002.6,0.001]
[1764486589076,0.37646706,3002.7,3002.6,0.001]
[1764486591885,0.9594,3002.7,3002.6,0.001]
[1764486592086,0.4971,3002.7,3002.6,0.001]
[1764486592281,0.002,3002.7,3002.6,0.9455]
[1764486593354,0.4589,3002.7,3002.6,0.6455]
[1764486593559,0.9411,3002.7,3002.6,0.6455]
[1764486594127,0.9411,3002.7,3002.6,0.001]
[1764486595801,0.9411,3002.7,3002.6,3.33144694]
[1764486596495,0.9411,3002.7,3002.6,0.001]
[1764486600694,0.002,3002.7,3002.6,0.001]
[1764486602101,0.4589,3002.7,3002.6,0.001]
[1764486602281,0.9411,3002.7,3002.6,0.001]
[1764486603310,0.4589,3002.7,3002.6,0.001]
[1764486603471,0.002,3002.7,3002.6,0.001]
[1764486603672,0.4589,3002.7,3002.6,0.001]
[1764486604103,0.9411,3002.7,3002.6,0.001]
[1764486610519,0.002,3002.7,3002.6,0.301]
[1764486611179,0.002,3002.7,3002.6,0.7832]
[1764486612610,0.002,3002.7,3002.6,4.11364694]
[1764486612799,0.9411,3002.7,3002.6,0.4832]
[1764486613221,0.9411,3002.7,3002.6,3.81364694]
[1764486614019,0.002,3002.7,3002.6,3.81364694]
[1764486614319,0.002,3002.7,3002.6,4.11364694]
[1764486616733,0.002,3002.7,3002.6,0.4832]
[1764486617094,0.4589,3002.7,3002.6,0.4832]
[1764486617298,0.002,3002.7,3002.6,3.81364694]
[1764486617725,0.4589,3002.7,3002.6,0.4832]
[1764486618324,0.9411,3002.7,3002.6,0.4832]
[1764486620803,0.9411,3002.7,3002.6,3.81364694]
[1764486620998,0.4589,3002.7,3002.6,3.81364694]
[1764486621606,0.002,3002.7,3002.6,3.81364694]
[1764486621806,0.002,3002.7,3002.6,4.11364694]
[1764486626107,0.002,3002.7,3002.6,5.51174934]
[1764486628605,0.002,3002.7,3002.6,6.27064791]
[1764486630832,0.002,3002.7,3002.6,5.93816543]
[1764486631143,0.002,3002.7,3002.6,7.46419211]
[1764486631445,0.002,3002.7,3002.6,6.23734345]
[1764486631735,0.002,3002.7,3002.6,6.27064791]
[1764486633301,0.002,3002.7,3002.6,5.63816543]
[1764486633504,0.002,3002.7,3002.6,5.60486097]
[1764486633829,0.002,3002.7,3002.6,5.90486097]
[1764486634030,0.002,3002.7,3002.6,5.93816543]
[1764486634737,0.002,3002.7,3002.6,5.90486097]
[1764486634924,0.002,3002.7,3002.6,5.93816543]
[1764486637627,0.002,3002.7,3002.6,6.27064791]
[1764486638138,0.002,3002.7,3002.6,7.46419211]
[1764486638433,0.002,3002.7,3002.6,7.43088765]
[1764486638734,0.002,3002.7,3002.6,7.83639165]
[1764486640541,0.002,3002.7,3002.6,11.07186097]
[1764486645237,0.002,3002.7,3002.6,10.73937849]
[1764486645431,0.002,3002.7,3002.6,11.07186097]
[1764486650346,0.002,3002.7,3002.6,9.87831677]
[1764486653261,0.002,3002.7,3002.6,11.66933004]
[1764486655760,0.002,3002.7,3002.6,9.87831677]
[1764486661564,0.002,3003.1,3002.7,1.43109811]
[1764486661773,0.002,3003.1,3003.0,7.10342112]
[1764486662263,0.002,3003.1,3003.0,7.23679913]
[1764486662470,0.002,3003.1,3003.0,9.02999701]
[1764486662639,0.002,3003.1,3003.0,10.16109512]
[1764486665262,0.002,3003.1,3003.0,13.49109845]
[1764486665469,0.002,3003.1,3003.0,15.03808388]
[1764486668879,0.002,3003.4,3003.2,0.405504]
[1764486669077,0.002,3003.4,3003.3,7.00008333]
[1764486669437,0.002,3003.4,3003.3,7.19588333]
[1764486669640,0.002,3003.4,3003.3,7.95349166]
[1764486670457,0.002,3003.4,3003.3,6.16245824]
[1764486671345,0.002,3003.4,3003.3,11.28316235]
[1764486671741,0.002,3003.4,3003.3,14.81863167]
[1764486672345,0.002,3003.4,3003.3,14.51863167]
[1764486673187,0.002,3003.4,3003.3,14.81863167]
[1764486673387,0.002,3003.4,3003.3,13.02759825]
[1764486673592,0.002,3003.4,3003.3,12.72759825]
[1764486673797,0.002,3003.4,3003.3,13.02759825]
[1764486675363,0.002,3003.4,3003.3,14.81863167]
[1764486676192,0.002,3003.4,3003.3,13.02759825]
[1764486676388,0.1927,3003.9,3003.4,1.13109811]
[1764486676719,0.1927,3003.9,3003.8,4.29354591]
[1764486676991,0.1927,3003.9,3003.8,4.50354591]
[1764486677184,1.148,3003.9,3003.8,4.50354591]
[1764486677375,1.148,3003.9,3003.8,4.97454591]
[1764486678079,1.148,3003.9,3003.8,8.30366236]
[1764486678284,1.148,3003.9,3003.8,9.58613627]
[1764486681102,1.148,3003.9,3003.8,9.25365379]
[1764486682598,0.002,3004.1,3003.9,0.72559411]
[1764486682801,0.4618,3004.1,3004.0,4.32683485]
[1764486682989,0.4618,3004.1,3004.0,8.6778495]
[1764486683295,0.9518,3004.1,3004.0,9.10636056]
[1764486683980,0.492,3004.1,3004.0,9.10636056]
[1764486684179,0.002,3004.1,3004.0,9.10636056]
[1764486684381,0.492,3004.1,3004.0,9.10636056]
[1764486684804,0.9518,3004.1,3004.0,9.10636056]
[1764486685673,0.9518,3004.1,3004.0,8.77387808]
[1764486686089,0.9518,3004.1,3004.0,7.75175823]
[1764486688606,0.002,3004.1,3004.0,7.75175823]
[1764486688996,0.492,3004.1,3004.0,8.08424071]
[1764486689312,0.9518,3004.1,3004.0,8.08424071]
[1764486691996,0.492,3004.1,3004.0,8.08424071]
[1764486692313,0.492,3004.1,3004.0,9.49399748]
[1764486693210,0.9518,3004.1,3004.0,9.49399748]
[1764486693513,0.002,3004.1,3004.0,12.7294668]
[1764486693715,0.492,3004.1,3004.0,12.7294668]
[1764486693892,0.9518,3004.1,3004.0,9.49399748]
[1764486694099,0.9518,3004.1,3004.0,10.68584839]
[1764486694497,0.492,3004.1,3004.0,10.68584839]
[1764486695011,0.9518,3004.1,3004.0,10.68584839]
[1764486698520,0.9518,3004.1,3004.0,9.49399748]
[1764486700517,0.9518,3004.1,3004.0,9.49139244]
[1764486702218,0.492,3004.1,3004.0,9.15890996]
[1764486702421,0.9518,3004.1,3004.0,9.49139244]
[1764486704095,0.9518,3004.1,3004.0,9.15890996]
[1764486707628,0.9518,3004.1,3004.0,9.49139244]
[1764486717047,0.9518,3004.1,3004.0,6.25852816]
[1764486717340,0.9518,3004.1,3004.0,5.92119172]
[1764486719840,0.002,3004.1,3004.0,8.59163567]
[1764486720011,0.4593,3004.1,3004.0,8.29163567]
[1764486720335,0.4593,3004.1,3004.0,10.07941204]
[1764486720540,0.4593,3004.1,3004.0,11.54850085]
[1764486721118,0.002,3004.1,3004.0,11.84850085]
[1764486721826,0.002,3004.1,3004.0,11.54850085]
[1764486723346,0.002,3004.1,3004.0,11.21601837]
[1764486723558,0.002,3004.1,3004.0,11.54850085]
[1764486723710,0.002,3004.1,3004.0,11.21601837]
[1764486724247,0.002,3004.1,3004.0,11.54850085]
[1764486724457,0.002,3004.1,3004.0,11.84850085]
[1764486726350,0.002,3004.1,3004.0,11.54850085]
[1764486727363,0.002,3004.1,3004.0,10.06072448]
[1764486727565,0.002,3004.5,3004.4,3.95845839]
[1764486727769,0.002,3004.5,3004.4,5.53007122]
[1764486728156,0.002,3004.5,3004.4,9.07463831]
[1764486728336,0.002,3004.5,3004.4,12.07879748]
[1764486728538,0.002,3004.5,3004.4,9.69014231]
[1764486729059,0.4594,3005.4,3005.2,0.33248248]
[1764486729235,0.4594,3005.4,3005.3,1.82996489]
[1764486729432,0.4594,3005.4,3005.3,0.93559411]
[1764486729670,0.9167,3005.4,3005.3,1.39499411]
[1764486730065,0.9167,3005.4,3005.3,2.28936489]
[1764486730370,0.9167,3005.4,3005.3,6.46451214]
[1764486730570,0.9167,3005.4,3005.3,6.79699462]